Cogmind - Beta 10.2 @@@ ROGUE MODE // 2022.02.26 @ 20:21:49 Player: Fleshy Vegetable Bird Result: Destroyed by G-47 Trooper with Particle Gun Performance ------------- Evolutions (3) 1500 Regions Visited (9) 1800 Robots Destroyed (65) 325 Value Destroyed (1484) 1484 Prototype IDs (6) 120 Alien Tech Used (0) 0 Bonus (84) 84 TOTAL SCORE: 5313 Bonus ------- High Alert Combat Kills 33 Follower Combat Kills 51 Cogmind --------- Core Integrity 0/700 Matter 210/300 Energy 194/200 System Corruption 0% Temperature Cool (15) Movement Flying (32) Location -7/Lower Caves Parts ------- > --- POWER (2) -------- Micro Nuclear Core Light Angular Momentum Engine > --- PROPULSION (3) --- Improved Flight Unit Cesium-ion Thruster Xenon Bombardment Thruster > --- UTILITY (6) ------ Improved Signal Interpreter Advanced Signal Interpreter Terrain Scan Processor Core Analyzer Hacking Suite > --- WEAPON (2) ------- Chainsword > --- INVENTORY (4) ---- Medium Storage Unit Improved ECM Suite Heavy Laser Light EM Pulse Cannon Peak State ------------ > --- POWER ------------ Micro Nuclear Core Light Angular Momentum Engine > --- PROPULSION ------- Improved Flight Unit Cesium-ion Thruster Xenon Bombardment Thruster > --- UTILITY ---------- Improved Signal Interpreter Advanced Signal Interpreter Terrain Scan Processor Core Analyzer Hacking Suite > --- WEAPON ----------- Chainsword > --- INVENTORY -------- Medium Storage Unit Improved ECM Suite Heavy Laser Light EM Pulse Cannon [Rating: 38] Favorites ----------- Power Light Ion Engine Engine Light Ion Engine Power Core Light Nuclear Core Propulsion Wheel Treads Light Treads Wheel Wheel Flight Unit Improved Flight Unit Utility Improved Terrain Scanner Device Improved Terrain Scanner Storage Small Storage Unit Processor Advanced Signal Interpreter Hackware Hacking Suite Protection Light Armor Plating Weapon Gauss Rifle Energy Gun Medium Laser Energy Cannon Light EM Pulse Cannon Ballistic Gun Gauss Rifle Launcher Grenade Launcher Special Weapon Mining Laser Slashing Weapon Chainsword Build | -11 -10 -10 -10 -9 -8 -7 -7 -7 -7 ------- Run | Scr Mat Min Exi Min Mat Fac Was Fac Low Slots Evolved 6 | . . . . . 4 2 . . . Power 1 | . . . . . . 1 . . . Propulsion 1 | . . . . . 1 . . . . Utility 4 | . . . . . 3 1 . . . Weapon . | . . . . . . . . . . Parts Attached 73 | 7 3 5 . 2 30 12 2 8 4 Power 8 | 1 . . . . 3 1 . 2 1 Engine 5 | 1 . . . . 2 1 . . 1 Core 3 | . . . . . 1 . . 2 . Reactor . | . . . . . . . . . . Propulsion 21 | 2 . 2 . . 6 6 1 3 1 Treads 2 | . . . . . 2 . . . . Leg . | . . . . . . . . . . Wheel 13 | 2 . 2 . . 3 5 1 . . Hover . | . . . . . . . . . . Flight 6 | . . . . . 1 1 . 3 1 Utility 22 | 2 . 2 . 1 11 2 . 2 2 Device 12 | 1 . 2 . . 7 1 . 1 . Storage 4 | 1 . . . 1 2 . . . . Processor 4 | . . . . . 1 1 . . 2 Hackware 1 | . . . . . . . . 1 . Protection 1 | . . . . . 1 . . . . Artifact . | . . . . . . . . . . Weapon 22 | 2 3 1 . 1 10 3 1 1 . Energy Gun 4 | 2 1 . . 1 . . . . . Energy Cannon 4 | . . . . . 3 1 . . . Ballistic Gun 7 | . . 1 . . 5 . 1 . . Ballistic Cannon . | . . . . . . . . . . Launcher 3 | . 2 . . . 1 . . . . Special Weapon 2 | . . . . . 1 1 . . . Impact Weapon . | . . . . . . . . . . Slashing Weapon 2 | . . . . . . 1 . 1 . Piercing Weapon . | . . . . . . . . . . Special Melee Weapon . | . . . . . . . . . . Unidentified Prototypes 3 | . . 1 . . 1 1 . . . Parts Lost 19 | . . . . . 12 . 5 2 . Power 2 | . . . . . 1 . 1 . . Propulsion 7 | . . . . . 4 . 2 1 . Utility 4 | . . . . . 1 . 2 1 . Weapon 6 | . . . . . 6 . . . . Highest Loss Streak 4 | . . . . . 4 . 3 2 . Average Slot Usage (%) 90 | . 100 100 100 100 88 92 76 29 78 Engine 9 | . 14 14 14 14 5 8 10 . 4 Core 1 | . . . . . 3 . . 3 7 Treads 1 | . . . . . 3 1 . . . Wheel 19 | . 28 28 28 28 15 20 17 . . Flight 1 | . . . . . . . . 4 23 Device 13 | . 14 14 14 14 16 15 6 3 . Storage 14 | . 14 14 14 14 17 15 14 . . Processor 7 | . . . . . 8 13 15 15 27 Energy Gun 3 | . 16 3 . 10 . . . . . Energy Cannon 2 | . . . . . 2 10 1 . . Ballistic Gun 6 | . . 10 14 3 11 2 3 . . Launcher 5 | . 11 14 14 14 1 . . . . Naked Turns . | . . . . . . . . . . Heaviest Build 50 | 11 13 13 12 20 41 50 47 9 18 Greatest Support 36 | 20 20 20 20 20 26 36 32 12 19 Greatest Overweight (x) 4 | . . . . . 4 1 3 . . Average Overweight (x) . | . . . . . 1 1 . . . Largest Inventory Capacity 14 | 6 6 6 6 8 14 14 14 4 4 Average Capacity 8 | 5 6 6 6 6 11 14 13 4 4 Most Carried 14 | 6 6 6 6 8 14 14 14 4 4 Average Carried 8 | 2 5 5 6 6 9 13 13 3 3 Final Capacity 14 | 6 6 6 6 8 14 14 4 4 4 Final Carried 13 | 6 5 6 6 7 13 13 4 4 4 Class Distribution -------------------- 34% | Scavenger-Mutant 28% | Scavenger-Skirmisher 27% | Mutant 6% | Sprinter Dominant Class ---------------- Mutant | -10/Materials Scavenger-Mutant | -10/Mines Scavenger-Mutant | -10/Exiles Scavenger-Mutant | -9/Mines Scavenger-Skirmisher | -8/Materials Scavenger-Skirmisher | -7/Factory Scavenger-Mutant | -7/Waste Mutant | -7/Factory Sprinter | -7/Lower Caves Resources | -11 -10 -10 -10 -9 -8 -7 -7 -7 -7 ----------- Run | Scr Mat Min Exi Min Mat Fac Was Fac Low Matter Collected 1429 | 154 72 29 . 126 836 36 111 22 43 Remotely . | . . . . . . . . . . Salvage Created 2143 | 209 134 118 . 3 1621 36 . 22 . Parts 139 | 14 10 12 . 6 91 4 . 2 . Haulers Intercepted 4 | . . . . . 4 . . . . Recyclers Shooed 4 | . 1 1 . . 2 . . . . Parts Field Recycled . | . . . . . . . . . . Retrieved Matter . | . . . . . . . . . . Parts Self-Destructed . | . . . . . . . . . . Prevented . | . . . . . . . . . . Kills | -11 -10 -10 -10 -9 -8 -7 -7 -7 -7 ------- Run | Scr Mat Min Exi Min Mat Fac Was Fac Low Combat Hostiles Destroyed 41 | . 5 8 . 4 24 . . . . Guns 14 | . 2 . . . 12 . . . . Cannons 5 | . . . . . 5 . . . . AOE 22 | . 3 8 . 4 7 . . . . Classes Destroyed 11 | 3 3 . . . 5 . . . . Worker 5 | 2 . . . . 1 1 . 1 . Builder 1 | . . . . . 1 . . . . Tunneler 3 | 3 . . . . . . . . . Hauler 4 | . . . . . 4 . . . . Recycler 4 | 1 . . . . 3 . . . . Operator 3 | . . . . . 2 1 . . . Watcher 4 | . 1 . . . 3 . . . . Swarmer 17 | . 3 6 . 4 4 . . . . Grunt 17 | . 2 2 . . 13 . . . . Brawler 1 | . . . . . 1 . . . . Sentry 6 | . . . . . 6 . . . . Best Kill Streak 4 | 4 3 3 . 4 4 1 . 1 . Combat Bots Only 4 | . 3 3 . 4 4 . . . . Max Kills in Single Turn 3 | 2 1 3 . 3 2 1 . 1 . Gunslinging . | . . . . . . . . . . Exploded 3 | . 1 3 . 3 2 . . . . Melee . | . . . . . . . . . . Uniques/NPCs Destroyed . | . . . . . . . . . . Combat | -11 -10 -10 -10 -9 -8 -7 -7 -7 -7 -------- Run | Scr Mat Min Exi Min Mat Fac Was Fac Low Damage Taken 2631 | . 140 16 . 92 1460 . 156 749 18 Core 1015 | . 16 . . 7 282 . 117 575 18 Absorbed by Shields . | . . . . . . . . . . Core Remaining (%) 79 | 100 . . . 90 48 . . . . Volleys Fired 138 | 16 11 5 . 3 85 4 14 . . Largest 2 | 2 2 1 . 1 2 2 1 . . Hottest 112 | 90 90 30 . 30 112 112 56 . . Shots Fired 216 | 32 18 5 . 3 139 5 14 . . Gun 159 | 32 15 2 . . 97 . 13 . . Cannon 33 | . . . . . 29 3 1 . . Launcher 16 | . 3 3 . 3 7 . . . . Special 8 | . . . . . 6 2 . . . Kinetic 112 | . . 2 . . 97 . 13 . . Thermal 55 | 32 15 . . . 6 2 . . . Explosive 16 | . 3 3 . 3 7 . . . . Electromagnetic 33 | . . . . . 29 3 1 . . Robot Hit Streak 31 | 6 7 2 . 3 31 9 3 . . Robot Miss Streak 5 | 3 2 1 . . 5 . 2 . . Penetration Max 1 | . . . . . 1 . . . . Secondary Targets . | . . . . . . . . . . Shots Hit Robots 137 | 17 13 2 . 2 92 3 8 . . Core Hits 94 | 7 10 8 . 6 59 2 1 1 . Critical Hits 3 | . . . . . 3 . . . . Critical Kills 1 | . . . . . 1 . . . . Critical Parts Destroyed 2 | . . . . . 2 . . . . Melee Attacks 4 | . . . . . . 3 . 1 . Impact . | . . . . . . . . . . Slashing 4 | . . . . . . 3 . 1 . Piercing . | . . . . . . . . . . Sneak Attacks . | . . . . . . . . . . Combat Hostiles . | . . . . . . . . . . Follow-up Attacks . | . . . . . . . . . . Damage Inflicted 4420 | 216 416 307 . 313 2813 79 260 16 . Guns 2248 | 216 130 10 . . 1633 . 259 . . Cannons 605 | . . . . . 525 79 1 . . Explosions 1549 | . 284 297 . 313 655 . . . . Melee . | . . . . . . . . . . Ramming 18 | . 2 . . . . . . 16 . Kinetic 1902 | . . 10 . . 1633 . 259 . . Thermal 477 | 216 130 . . . 131 . . . . Explosive 1418 | . 284 297 . 313 524 . . . . Electromagnetic 605 | . . . . . 525 79 1 . . Impact . | . . . . . . . . . . Slashing . | . . . . . . . . . . Piercing . | . . . . . . . . . . Highest Corruption 3 | . . . . . 3 . . . . Average Corruption 3 | . . . . . 3 . . . . Corruption Purged . | . . . . . . . . . . Effects 33 | . . . . . 33 . . . . Message Errors 11 | . . . . . 11 . . . . Matter Fused 9 | . . . . . 9 . . . . Heat Flow Errors 1 | . . . . . 1 . . . . Energy Discharges 3 | . . . . . 3 . . . . Data Loss (minor) 2 | . . . . . 2 . . . . Targeting Errors 6 | . . . . . 6 . . . . Weapon Failures 1 | . . . . . 1 . . . . Overload Shots . | . . . . . . . . . . Overflow Damage 64 | . 39 . . 3 22 . . . . Projectiles . | . . . . . . . . . . Explosions 64 | . 39 . . 3 22 . . . . Melee . | . . . . . . . . . . Knockbacks . | . . . . . . . . . . Impact . | . . . . . . . . . . Kinetic . | . . . . . . . . . . Secondary . | . . . . . . . . . . Self-Inflicted Damage 151 | . 1 16 . 45 81 . . 8 . Shots 8 | . . 1 . 2 5 . . . . Rammed 3 | . 1 . . . 1 . . 1 . Targets Rammed 3 | . 1 . . . 1 . . 1 . Kicked . | . . . . . . . . . . Crushed . | . . . . . . . . . . Highest Temperature 273 | 210 273 . . . 145 116 14 3 . Average Temperature 55 | 78 135 . . . 23 51 10 3 . Received Heat Transfer 759 | . 63 . . . 666 . . 21 9 Effects 2 | 2 . . . . . . . . . Interference 2 | 2 . . . . . . . . . Siege Activations . | . . . . . . . . . . Robots Corrupted . | . . . . . . . . . . Combat Hostiles . | . . . . . . . . . . Parts Fried 8 | . . . . . 6 2 . . . Impact Corruptions . | . . . . . . . . . . Robots Melted . | . . . . . . . . . . Combat Hostiles . | . . . . . . . . . . Parts Melted . | . . . . . . . . . . Heat Transferred 1117 | 570 347 . . . 200 . . . . Parts Sabotaged . | . . . . . . . . . . Parts Stolen . | . . . . . . . . . . Parts Stripped . | . . . . . . . . . . Power Chain Reactions 2 | . . . . . 2 . . . . Missiles Intercepted . | . . . . . . . . . . Alert | -11 -10 -10 -10 -9 -8 -7 -7 -7 -7 ------- Run | Scr Mat Min Exi Min Mat Fac Was Fac Low Peak Influence 518 | 30 206 212 . 176 518 369 75 190 . Initial 235 | . 19 7 . . 68 235 60 3 . Average 190 | 9 126 181 . 143 238 279 48 54 . Maximum Alert Level 2 | . 1 1 . . 2 1 . . . Low Security (%) 55 | 100 57 47 . 100 43 23 100 100 . Level 1 38 | . 42 52 . . 40 76 . . . Level 2 6 | . . . . . 15 . . . . Level 3 . | . . . . . . . . . . Level 4 . | . . . . . . . . . . Level 5 . | . . . . . . . . . . High Security . | . . . . . . . . . . Max Security . | . . . . . . . . . . Squads Dispatched 8 | . 2 . . . 5 1 . . . Investigation 3 | . . . . . 2 1 . . . Extermination . | . . . . . . . . . . Reinforcement 5 | . 2 . . . 3 . . . . Assault . | . . . . . . . . . . Garrison . | . . . . . . . . . . Intercept . | . . . . . . . . . . Construction Impeded 1 | . . . . . 1 . . . . Haulers Reinforced . | . . . . . . . . . . Stealth | -11 -10 -10 -10 -9 -8 -7 -7 -7 -7 --------- Run | Scr Mat Min Exi Min Mat Fac Was Fac Low Distress Signals 4 | . 1 . . . 2 . . 1 . Communications Jammed . | . . . . . . . . . . Distress Signals . | . . . . . . . . . . Times Spotted 90 | . 12 5 . 7 43 1 6 11 5 Peak Tracking Total 6 | . 4 3 . 4 6 1 5 6 5 Tactical Retreats 9 | . 1 . . . 3 . . 5 . Traps | -11 -10 -10 -10 -9 -8 -7 -7 -7 -7 ------- Run | Scr Mat Min Exi Min Mat Fac Was Fac Low Traps Triggered 6 | . . . . . 1 1 . 4 . Indirectly . | . . . . . . . . . . Trap Hack Attempts . | . . . . . . . . . . Triggered . | . . . . . . . . . . Disarmed . | . . . . . . . . . . Reprogrammed . | . . . . . . . . . . Reused . | . . . . . . . . . . Traps Extracted . | . . . . . . . . . . Installed . | . . . . . . . . . . Triggered . | . . . . . . . . . . Machines | -11 -10 -10 -10 -9 -8 -7 -7 -7 -7 ---------- Run | Scr Mat Min Exi Min Mat Fac Was Fac Low Machines Disabled 3 | . 1 1 . . 1 . . . . Max in Single Turn 1 | . 1 1 . . 1 . . . . Garrison Access 1 | . . . . . . 1 . . . Machines Sabotaged . | . . . . . . . . . . Garrisons Compromised . | . . . . . . . . . . Overloaded Fab Kills . | . . . . . . . . . . Fab Network Shutdowns . | . . . . . . . . . . Hacking | -11 -10 -10 -10 -9 -8 -7 -7 -7 -7 --------- Run | Scr Mat Min Exi Min Mat Fac Was Fac Low Machines Accessed 23 | . 1 . 2 . 11 5 . 4 . Terminals 14 | . 1 . . . 8 1 . 4 . Fabricators 1 | . . . . . . 1 . . . Repair Stations 2 | . . . . . 1 1 . . . Recycling Units . | . . . . . . . . . . Scanalyzers 3 | . . . . . 2 1 . . . Garrison Access 1 | . . . . . . 1 . . . Total Hacks 93 | . 4 . 32 . 34 15 . 8 . Successful 65 | . 2 . 32 . 15 12 . 4 . Failed 28 | . 2 . . . 19 3 . 4 . Catastrophic 3 | . . . . . 2 . . 1 . Database Lockouts . | . . . . . . . . . . Manual 38 | . 4 . . . 22 4 . 8 . Terminals 39 | . 4 . . . 23 4 . 8 . Fabricators 3 | . . . . . . 3 . . . Repair Stations 4 | . . . . . 2 2 . . . Recycling Units . | . . . . . . . . . . Scanalyzers 14 | . . . . . 9 5 . . . Garrison Access 1 | . . . . . . 1 . . . Terminal Hacks 38 | . 1 . 32 . 3 1 . 1 . Record 32 | . . . 32 . . . . . . Part Schematic 1 | . . . . . 1 . . . . Prototype ID Bank 1 | . . . . . 1 . . . . Terminal Index 3 | . 1 . . . . 1 . 1 . Recall Investigation 1 | . . . . . 1 . . . . Fabricator Hacks 2 | . . . . . . 2 . . . Load Schematic 1 | . . . . . . 1 . . . Build 1 | . . . . . . 1 . . . Repair Station Hacks 4 | . . . . . 2 2 . . . Scan Component 2 | . . . . . 1 1 . . . Repair 2 | . . . . . 1 1 . . . Recycling Unit Hacks . | . . . . . . . . . . Scanalyzer 12 | . . . . . 8 4 . . . Insert Component 6 | . . . . . 4 2 . . . Analyze 6 | . . . . . 4 2 . . . Garrison Access Hacks 1 | . . . . . . 1 . . . Seal Access 1 | . . . . . . 1 . . . Unauthorized Hacks 8 | . 1 . . . 2 2 . 3 . Terminals 8 | . 1 . . . 2 2 . 3 . Track 2 | . . . . . . 1 . 1 . Botnet 6 | . 1 . . . 2 1 . 2 . Fabricators . | . . . . . . . . . . Repair Stations . | . . . . . . . . . . Recycling Units . | . . . . . . . . . . Scanalyzers . | . . . . . . . . . . Garrison Access . | . . . . . . . . . . Data Cores Recovered 2 | . . . . . 1 1 . . . Used 1 | . . . . . . 1 . . . Hacking Detections 18 | . 1 . . . 9 4 . 4 . Full Trace Events 3 | . . . . . 2 1 . . . Feedback Events . | . . . . . . . . . . Feedback Blocked . | . . . . . . . . . . Robot Schematics Acquired . | . . . . . . . . . . Robots Built . | . . . . . . . . . . Matter . | . . . . . . . . . . Time . | . . . . . . . . . . Total Robot Build Rating . | . . . . . . . . . . Part Schematics Acquired 6 | . . . . . 4 2 . . . Parts Built 1 | . . . . . . 1 . . . Matter 186 | . . . . . . 186 . . . Time 33 | . . . . . . 33 . . . Total Part Build Rating 2 | . . . . . . 2 . . . Parts Repaired 2 | . . . . . 1 1 . . . Time 88 | . . . . . 80 8 . . . Parts Recycled . | . . . . . . . . . . Recycled Matter . | . . . . . . . . . . Retrieved Matter . | . . . . . . . . . . Retrieved Components . | . . . . . . . . . . Parts Scanalyzed 6 | . . . . . 4 2 . . . Part Schematics Acquired 5 | . . . . . 3 2 . . . Parts Damaged . | . . . . . . . . . . Bothacking | -11 -10 -10 -10 -9 -8 -7 -7 -7 -7 ------------ Run | Scr Mat Min Exi Min Mat Fac Was Fac Low Used RIF Installer . | . . . . . . . . . . Robots Hacked . | . . . . . . . . . . Non-combat . | . . . . . . . . . . Combat . | . . . . . . . . . . Robot Hacks Applied . | . . . . . . . . . . Relay Couplers Released . | . . . . . . . . . . Robots Rewired 2 | . . . 2 . . . . . . Allies Hacked . | . . . . . . . . . . Hacks Repelled . | . . . . . . . . . . Allies | -11 -10 -10 -10 -9 -8 -7 -7 -7 -7 -------- Run | Scr Mat Min Exi Min Mat Fac Was Fac Low Total Allies 3 | . . . 2 . . . 1 . . Largest Group 2 | . . . 2 2 2 . 1 . . Highest-Rated Group 31 | . . . 29 29 29 . 31 . . Highest-Rated Ally 31 | . . . 21 21 21 . 31 . . Total Orders . | . . . . . . . . . . Ally Attacks 26 | . . . . 3 3 . 20 . . Total Damage 421 | . . . . 55 11 . 355 . . Kills 4 | . . . . 3 . . 1 . . Allies Corrupted . | . . . . . . . . . . Allies Melted . | . . . . . . . . . . Intel | -11 -10 -10 -10 -9 -8 -7 -7 -7 -7 ------- Run | Scr Mat Min Exi Min Mat Fac Was Fac Low Robot Analysis Total . | . . . . . . . . . . Derelict Logs Recovered 2 | . . 1 . 1 . . . . . Drone Launches . | . . . . . . . . . . Drone Recoveries . | . . . . . . . . . . Exploration | -11 -10 -10 -10 -9 -8 -7 -7 -7 -7 ------------- Run | Scr Mat Min Exi Min Mat Fac Was Fac Low Turns Passed 4442 | 126 539 330 421 350 1570 525 150 166 265 Spaces Moved 3691 | 54 178 375 476 387 971 364 118 353 415 Core 175 | 7 . . . . . . 15 153 . Treads 46 | . . . . . 46 . . . . Legs . | . . . . . . . . . . Wheels 2855 | 47 178 375 476 387 925 364 103 . . Hover . | . . . . . . . . . . Flight 615 | . . . . . . . . 200 415 Fastest Speed 32 | 50 80 80 80 80 80 93 50 34 32 Average Speed 78 | 76 80 80 80 80 99 97 90 41 32 Slowest Speed 180 | 80 80 80 80 80 180 100 110 50 32 Overloaded Moves . | . . . . . . . . . . Propulsion Burnouts . | . . . . . . . . . . Robots Hopped 3 | . . . . . . . . 3 . Cave-ins Triggered . | . . . . . . . . . . Exploration Rate (%) 49 | 6 27 70 90 89 67 8 74 19 45 Regions Visited 9 Branch Regions 4 Pre-discovered Areas 1 | . . . 1 . . . . . . Known Exits Taken 2 | . . . . . 1 . . 1 . Unknown Exits Taken 5 | 1 1 1 1 1 . . . . . Scrap Searched 7 | . . . . 3 . . . . 4 Spaces Dug 10 | . . . . . 6 3 . 1 . Terrain Destroyed 98 | . 12 22 . 14 46 3 . 1 . Melee 4 | . . . . . . 3 . 1 . Projectile 6 | . . . . . 6 . . . . AOE 88 | . 12 22 . 14 40 . . . . Terrain Rammed . | . . . . . . . . . . Walls Destroyed . | . . . . . . . . . . Machines Disabled . | . . . . . . . . . . Actions | -11 -10 -10 -10 -9 -8 -7 -7 -7 -7 --------- Run | Scr Mat Min Exi Min Mat Fac Was Fac Low Total 5014 | 106 556 399 515 426 1423 526 148 367 548 Wait 965 | 17 359 6 11 26 295 120 10 . 121 Move 3677 | 53 177 374 475 386 970 364 117 346 415 Hop 3 | . . . . . . . . 3 . Pick Up 84 | 13 2 5 . 5 30 13 2 8 6 Fast Attach . | . . . . . . . . . . Attach 46 | 7 . . . . 23 3 1 8 4 Detach 6 | . . . . . 5 . 1 . . Swap 27 | . 3 5 . 2 7 9 1 . . Drop 32 | . 3 4 . 4 7 10 2 . 2 Fire 138 | 16 11 5 . 3 85 4 14 . . Melee 4 | . . . . . . 3 . 1 . Ram 3 | . 1 . . . 1 . . 1 . Kick . | . . . . . . . . . . Crush . | . . . . . . . . . . Escape Stasis . | . . . . . . . . . . Rewire 29 | . . . 29 . . . . . . Trap . | . . . . . . . . . . Miscellaneous . | . . . . . . . . . . Route ------- -11/Scrapyard -10/Materials -10/Mines -10/Exiles (discovered 2 exits: [*Min x2]) -9/Mines (discovered 2 exits: *Mat x2) -8/Materials (discovered 2 exits: *Fac x2) -7/Factory -7/Waste -7/Factory -7/Lower Caves History --------- Turn | Location | Event 42 | -11/Scrapyard | Discovered new exit (range 14) 127 | -11/Scrapyard | Entered Materials 313 | -10/Materials | Build established: Mutant 659 | -10/Materials | Discovered new exit (range 8) 666 | -10/Materials | Entered Mines 691 | -10/Mines | Learned Materials garrison access intel 695 | -10/Mines | Met a Derelict bent on vengeance 756 | -10/Mines | Found a damaged Exp. Sensor Array with a note attached 759 | -10/Mines | Found Prototype Device 760 | -10/Mines | Identified Exp. Sensor Array 837 | -10/Mines | Found a hidden stash of uninstalled traps 992 | -10/Mines | Deemed a non-threat by the Exiles lab entrance 993 | -10/Mines | Discovered new exit (range 5) 996 | -10/Mines | Entered Exiles 996 | -10/Exiles | Found Exiles lab destroyed 1007 | -10/Exiles | Discovered new exit (range 15) 1127 | -10/Exiles | Build established: Scavenger-Mutant 1365 | -10/Exiles | Learned location of Zion (-6) 1399 | -10/Exiles | Discovered new exit (range 11) 1417 | -10/Exiles | Entered Mines 1417 | -9/Mines | Accompanied by 2 allies 1448 | -9/Mines | Learned Materials stockpile data 1498 | -9/Mines | A weapon hastily lodged in a ceiling crevice suddenly fell to the ground 1538 | -9/Mines | Discovered new exit (range 9) 1745 | -9/Mines | Discovered new exit (range 5) 1767 | -9/Mines | Entered Materials 1767 | -8/Materials | Accompanied by 2 allies 1767 | -8/Materials | Evolved 4 slots: Propulsion x1, Utility x3 1769 | -8/Materials | Loaded intel: 1 garrison access location 2006 | -8/Materials | Discovered new exit (range 10) 2583 | -8/Materials | Repaired Exp. Sensor Array 2595 | -8/Materials | Lost 4 parts (1p1u2w) 2833 | -8/Materials | Build established: Scavenger-Skirmisher 3170 | -8/Materials | Lost 3 parts (2n1w) 3332 | -8/Materials | Discovered new exit (range 6) 3336 | -8/Materials | Identified exit to Factory 3337 | -8/Materials | Core integrity fell below 50% 3337 | -8/Materials | Entered Factory 3337 | -7/Factory | Evolved 2 slots: Power x1, Utility x1 3378 | -7/Factory | Fabricated Imp. Flight Unit? 3476 | -7/Factory | Repaired Wheel 3862 | -7/Factory | Sucked down chute 3862 | -7/Factory | Entered Waste 3863 | -7/Waste | Met a frightened Derelict 3876 | -7/Waste | Spotted C-40 Crusher 3905 | -7/Waste | Allies destroyed C-40 Crusher 3917 | -7/Waste | Spotted C-40 Crusher 3944 | -7/Waste | Spotted C-40 Crusher 3954 | -7/Waste | Spotted C-40 Crusher 3963 | -7/Waste | Crushed by Compactor (1 part destroyed, 1 dropped) 3966 | -7/Waste | Crushed by Compactor (1 part destroyed, 2 dropped) 3976 | -7/Waste | Spotted C-40 Crusher 3991 | -7/Waste | Spotted C-40 Crusher 3997 | -7/Waste | Lost 3 parts (1p2n) 4004 | -7/Waste | Crushed by Compactor (1 part destroyed, 2 dropped) 4006 | -7/Waste | Discovered new exit (range 13) 4007 | -7/Waste | Crushed by Compactor (1 part destroyed, 1 dropped) 4012 | -7/Waste | Identified exit to Factory 4012 | -7/Waste | Entered Factory 4087 | -7/Factory | Core integrity fell below 50% 4100 | -7/Factory | Core integrity fell below 20% 4165 | -7/Factory | Discovered new exit (range 15) 4177 | -7/Factory | Identified exit to Lower Caves 4178 | -7/Factory | Entered Lower Caves 4212 | -7/Lower Caves | Encountered a Warlord checkpoint 4443 | -7/Lower Caves | Destroyed by G-47 Trooper with Particle Gun Last Messages --------------- 04230_ Found Hvy. Laser. 04230_ Found 15 Matter. 04230_ Acquired 15 matter. 04232_ Acquired Hvy. Laser. 04247_ Searching scrap... 04247_ Found Imp. Signal Interpreter. 04247_ Found Lrn. Tractor Beam. 04247_ Found 28 Matter. 04248_ Acquired 28 matter. 04248_ Dropped Imp. ECM Suite. 04248_ Acquired Imp. Signal Interpreter. 04251_ Acquired Imp. ECM Suite. 04257_ Searching scrap... 04257_ Found Flak Gun. 04257_ Found 18 Matter. 04258_ Dropped Hvy. Laser. 04258_ Acquired Lgt. Angular Momentum Engine. 04261_ Acquired Hvy. Laser. 04265_ Connecting with WAR.Sys... 04417_ Slug penetrates Wall. Map ----- +----------------------------------------------------+ | ?????????????????????????????????????????????????? | | ?????????????????????????????????????????????????? | | ?????????????????????????????????????????????????? | | ?????????????????????????????????????????????????? | | ?????????????????????????????????????????????????? | | ?????????????????????????????????????????????????? | | ?????????????????????????????????????????????????? | | ?????????????????????????????????????????????????? | | ?????????????????????????????????????????????????? | | ?????????????????????????????????????????????????? | | ?????????????????????????????????????????????????? | | ?????????????????????????????????????????????????? | | ?????????????????????????????????????????????????? | | ?????????????????????????????????????????????????? | | ?????????????????????????????????????????????????? | | ?????????????????????????????????????????????????? | | ?????????????????????????????????????????????????? | | ???????????????????????????#####?????????????????? | | ???????????????#??????????# #?????????????????? | | ???????????? ## ???????## ??????????????????? | | ???????????? ?????# ???????????????????? | | ??????????? ???## ??????###???????????? | | ??????????? g ### #?????# #???????????? | | ??????????# g #???## #????????????? | | ??????????# bg #?#### #?????????????? | | ??????????# @#### #??????????????? | | ?????????? ##?????????????? | | ?????????? ##????????????? | | ??????????? ## #### ### #????????????? | | ??????????? ????### ???###?# #???????? ??? | | ?????????????????????# ???????# #???????? ? | | ????????????????????# ???????## ##??????? | | ????????????????????## ????????# ##????? | | ?????????????????????####????????# #????? | | ?????????????????????????????????# #????? | | ?????????????????????????????????# #????? | | ?????????????????????????????????## #?????# | | ??????????????????????????????????# #????## # | | ??????????????????????????????????# #???## #? | | ??????????????????????????????????# #???# #?# | | ??????????????????????????????????## #????# #?## | | ???????????????????????????????????# #??### ### | | ??????????????????????????????????## #??# | | ???????????????????????????????#### #### | | ???????????????????????????????# ! | | ???????????????????????????????## ## | | ????????????????????????????????# ### ### | | ????????????????????????????????# ##?# ##### | | ????????????????????????????????## #### ### # | | ?????????????????????????????????## ## #?# ] | +----------------------------------------------------+ Best States ------------- Heat Dissipation 34 Energy Generation 28 Energy Capacity 315 Matter Stores 300 Matter Capacity 300 Sight Range 16 Robot Scan Range 30 Terrain Scan Range 16 Terrain Scan Density 85 Armor Coverage 150 Evasion (%) 63 Core Analysis 6 Recoil Reduction 1 Offensive Hacking 10 Item Schematics ----------------- Exp. Sensor Array | -8/Materials | Scanalyzed Lgt. Angular Momentum Engine | -8/Materials | Scanalyzed Adv. Signal Interpreter | -8/Materials | Scanalyzed Imp. Flight Unit | -8/Materials | Hacked Lrg. Storage Unit | -7/Factory | Scanalyzed Imp. Cesium-ion Thruster | -7/Factory | Scanalyzed Robot Schematics ------------------ None Fabricated ------------ Imp. Flight Unit | x1 | -7/Factory Alien Tech Used ----------------- None Achievements -------------- None Challenges ------------ None Game ------ Seed ResetStorageNullifier Manual? 0 Play Time 00:51:03 Cumulative 310.5 hours Start 2022.02.26 @ 19:12:12 End 2022.02.26 @ 20:21:49 Sessions 1 Manual Loads 0 Difficulty Rogue Special Mode None Game No. 346 Rogue 346 Adventurer 0 Explorer 0 Win Type - Total 6 Types 3/1/1/1/0/0/0/0/0 Lore% 68 Gallery% 85 Achievement% 66 Wizard Run 0 Options --------- ASCII 0 Keyboard 0 Movement Numpad Keybinds 0 Fullscreen 1 Font 16/Terminus Map View 75x55 Tactical HUD 1 Map Filters NONE Filters NONE Steam 1 RUN: 92036a00-cc99-418d-93ba-cc767a21c079